bitfinex/quotes_SOLUSD_20250507
["timestamp","ask_amount","ask_price","bid_price","bid_amount"]
[1746649294895,42.34,146.22,146.19,15.73909687]
[1746649294896,6.83947746,146.21,146.19,15.73909687]
[1746649295077,6.83947746,146.21,146.2,15.73909687]
[1746649295480,6.83947746,146.21,146.19,15.73909687]
[1746649296396,6.83947746,146.21,146.2,15.73909687]
[1746649298707,23.93817111,146.21,146.19,15.73909687]
[1746649298903,39.67726798,146.21,146.13,82.5]
[1746649299207,15.73909687,146.17,146.12,6.3519]
[1746649299528,15.73909687,146.15,146.11,15.73909687]
[1746649299705,6.84322178,146.13,146.1,15.73909687]
[1746649300782,23.95127625,146.13,146.1,15.73909687]
[1746649300978,23.95127625,146.13,146.11,15.73909687]
[1746649301900,23.95127625,146.13,146.1,15.73909687]
[1746649303995,23.95127625,146.13,146.08,26.0]
[1746649304195,39.69037312,146.13,146.09,15.73909687]
[1746649304789,39.69037312,146.13,146.07,26.0]
[1746649304790,23.95127625,146.13,146.1,15.73909687]
[1746649306309,23.95127625,146.13,146.11,15.73909687]
[1746649306807,6.84322178,146.13,146.12,15.73909687]
[1746649308106,6.84228532,146.15,146.12,15.73909687]
[1746649308294,6.84228532,146.15,146.13,15.73909687]
[1746649310622,6.84181718,146.16,146.13,15.73909687]
[1746649310921,6.84181718,146.16,146.14,15.73909687]
[1746649316729,6.84181718,146.16,146.15,15.73909687]
[1746649320818,23.94636014,146.16,146.13,15.73909687]
[1746649321123,23.94636014,146.16,146.11,15.73909687]
[1746649321124,15.73909687,146.15,146.11,15.73909687]
[1746649321819,23.94636014,146.16,146.12,15.73909687]
[1746649321820,39.68545701,146.16,146.12,15.73909687]
[1746649323999,23.94636014,146.16,146.13,15.73909687]
[1746649326322,39.68545701,146.16,146.12,15.73909687]
[1746649329330,23.94636014,146.16,146.12,15.73909687]
[1746649329625,6.84181718,146.16,146.14,15.73909687]
[1746649330604,6.84181718,146.16,146.1,6.84449594]
[1746649330605,23.16146533,146.17,146.15,15.73909687]
[1746649330807,23.16146533,146.17,146.16,15.73909687]
[1746649331101,63.35962275,146.21,146.16,31.47819374]
[1746649331102,16.3,146.21,146.16,31.47819374]
[1746649331311,16.3,146.21,146.2,15.73909687]
[1746649331607,16.3,146.21,146.19,15.73909687]
[1746649332716,6.83994528,146.2,146.18,15.73909687]
[1746649333122,15.73909687,146.19,146.12,27.6397]
[1746649333418,15.73909687,146.19,146.15,15.73909687]
[1746649334813,6.8408811,146.18,146.15,15.73909687]
[1746649335009,6.8408811,146.18,146.16,15.73909687]
[1746649335336,6.8408811,146.18,146.12,1.6397]
[1746649335539,6.8408811,146.18,146.15,15.73909687]
[1746649335710,6.8408811,146.18,146.14,15.73909687]
[1746649335711,22.57997797,146.18,146.14,15.73909687]
[1746649335912,23.94308386,146.18,146.15,15.73909687]
[1746649336632,23.94308386,146.18,146.16,15.73909687]
[1746649336825,17.10220276,146.18,146.16,15.73909687]
[1746649340822,17.10220276,146.18,146.12,1.6397]
[1746649341022,17.10220276,146.18,146.15,15.73909687]
[1746649341826,17.10220276,146.18,146.16,15.73909687]
[1746649344133,17.10220276,146.18,146.15,15.73909687]
[1746649345437,17.10220276,146.18,146.16,15.73909687]
[1746649346540,39.67890535,146.2,146.16,15.73909687]
[1746649350749,15.73909687,146.19,146.15,15.73909687]
[1746649351248,23.94308386,146.18,146.12,1.6397]
[1746649351450,23.94308386,146.18,146.14,15.73909687]
[1746649352551,23.94308386,146.18,146.15,15.73909687]
[1746649353852,23.94308386,146.18,146.14,15.73909687]
[1746649354042,39.68218073,146.18,146.13,15.73909687]
[1746649354241,39.68218073,146.18,146.11,15.73909687]
[1746649354242,15.73909687,146.16,146.11,15.73909687]
[1746649356361,23.94799862,146.15,146.09,26.0]
[1746649356541,23.94799862,146.15,146.11,15.73909687]
[1746649358236,23.94799862,146.15,146.12,15.73909687]
[1746649361437,15.73909687,146.16,146.09,48.58416494]
[1746649361438,6.84198076,146.16,146.14,15.73909687]
[1746649361634,6.84198076,146.16,146.15,15.73909687]
[1746649366040,6.84198076,146.16,146.1,6.84440714]
[1746649366357,6.84198076,146.16,146.15,15.73909687]
[1746649367955,6.84198076,146.16,146.14,15.73909687]
[1746649368157,23.94652372,146.16,146.13,15.73909687]
[1746649370147,23.94652372,146.16,146.14,15.73909687]
[1746649372370,23.94652372,146.16,146.13,15.73909687]
[1746649376275,23.94652372,146.16,146.14,15.73909687]
[1746649377866,23.94652372,146.16,146.13,15.73909687]
[1746649378073,23.94652372,146.16,146.12,15.73909687]
[1746649379569,15.73909687,146.15,146.1,15.73909687]
[1746649380170,15.73909687,146.15,146.11,15.73909687]
[1746649380376,15.73909687,146.15,146.08,8.0403]
[1746649380377,39.6887342,146.14,146.08,8.0403]
[1746649380566,39.6887342,146.14,146.09,15.73909687]
[1746649380567,15.73909687,146.13,146.09,15.73909687]
[1746649380954,39.6887342,146.14,146.09,15.73909687]
[1746649381156,15.73909687,146.13,146.08,15.73909687]
[1746649381351,15.73909687,146.12,146.08,15.73909687]
[1746649381861,16.28,146.12,146.09,15.73909687]
[1746649382360,23.95455478,146.11,146.08,15.73909687]
[1746649383270,15.73909687,146.1,146.05,27.6268]
[1746649383572,15.73909687,146.1,146.06,15.73909687]
[1746649383874,15.73909687,146.1,146.05,26.0]
[1746649384076,15.73909687,146.1,146.06,15.73909687]
[1746649384468,6.84509548,146.09,146.06,15.73909687]
[1746649387482,6.84509548,146.09,146.04,6.6564]
[1746649387674,22.58419235,146.09,146.04,6.6564]
[1746649387865,22.58419235,146.09,146.05,15.73909687]
[1746649389480,39.69693107,146.09,146.05,15.73909687]
[1746649389679,15.73909687,146.08,146.04,15.73909687]
[1746649391578,6.84603272,146.07,146.04,15.73909687]
[1746649391752,22.58512959,146.07,146.03,15.73909687]
[1746649391958,15.73909687,146.06,146.02,15.73909687]
[1746649393082,55.9802114,146.07,146.03,15.73909687]
[1746649396476,15.73909687,146.06,146.01,1.6268]
[1746649396682,15.73909687,146.06,146.0,6.6564]
[1746649396683,15.73909687,146.04,146.0,15.73909687]
[1746649397858,18.64964886,146.06,146.0,15.73909687]
[1746649398182,22.58606708,146.05,146.01,15.73909687]
[1746649399076,22.58606708,146.05,145.98,6.85015778]
[1746649399278,22.58606708,146.05,146.01,15.73909687]
[1746649400886,6.84697021,146.05,146.02,15.73909687]
[1746649401491,22.58606708,146.05,146.01,15.73909687]
[1746649403782,39.70349261,146.05,146.01,15.73909687]
[1746649403987,15.73909687,146.04,146.0,15.73909687]
[1746649404291,15.73909687,146.02,145.98,15.73909687]
[1746649404621,32.01909687,146.02,145.98,15.73909687]
[1746649405376,32.01909687,146.02,145.97,6.023]
[1746649405690,32.01909687,146.02,145.98,15.73909687]
[1746649405994,22.58794283,146.01,145.97,15.73909687]
[1746649406166,39.71005775,146.01,145.97,15.73909687]
[1746649406367,23.97096088,146.01,145.98,15.73909687]
[1746649407271,39.71005775,146.01,145.97,15.73909687]
[1746649409093,23.97096088,146.01,145.98,15.73909687]
[1746649409397,6.84884596,146.01,146.0,15.73909687]
[1746649409771,6.84884596,146.01,145.99,15.73909687]
[1746649414201,6.84884596,146.01,146.0,15.73909687]
[1746649414879,6.84884596,146.01,145.97,6.8506531]
[1746649415081,6.84884596,146.01,146.0,15.73909687]
[1746649415906,6.84884596,146.01,145.96,6.8511921]
[1746649416106,6.84884596,146.01,146.0,15.73909687]
[1746649416403,23.12860955,146.02,146.0,15.73909687]
[1746649418101,16.28,146.02,146.0,15.73909687]
[1746649418302,16.28,146.02,146.01,15.73909687]
[1746649419217,6.84770114,146.04,146.01,15.73909687]
[1746649419504,6.84770114,146.04,146.02,15.73909687]
[1746649419884,6.84770114,146.04,146.03,15.73909687]
[1746649421290,16.28,146.05,146.03,15.73909687]
[1746649421607,23.1271595,146.05,146.04,15.73909687]
[1746649423094,6.8471595,146.05,146.04,15.73909687]
[1746649424410,23.95957588,146.08,146.04,15.73909687]
[1746649425409,23.95957588,146.08,146.05,15.73909687]
[1746649427412,6.84556407,146.08,146.07,15.73909687]
[1746649427916,16.28,146.09,146.07,15.73909687]
[1746649428214,6.84485248,146.1,146.08,15.73909687]
[1746649428390,6.84485248,146.1,146.09,15.73909687]
[1746649429599,6.84369011,146.12,146.09,15.73909687]
[1746649429804,6.84369011,146.12,146.1,15.73909687]
[1746649431414,6.84369011,146.12,146.05,89.34694895]
[1746649431618,6.84369011,146.12,146.1,15.73909687]
[1746649435619,23.12324947,146.13,146.11,15.73909687]
[1746649435801,23.12324947,146.13,146.12,15.73909687]
[1746649438413,6.84324947,146.13,146.12,15.73909687]
[1746649440022,23.94799862,146.15,146.12,15.73909687]
[1746649440327,23.94799862,146.15,146.11,15.73909687]
[1746649440533,15.73909687,146.13,146.09,15.73909687]
[1746649440723,15.73909687,146.13,146.08,15.73909687]
[1746649441225,15.73909687,146.12,146.08,15.73909687]
[1746649441599,15.73909687,146.11,146.05,6.2149]
[1746649441801,15.73909687,146.11,146.07,15.73909687]
[1746649441996,16.26,146.12,146.06,15.73909687]
[1746649441997,15.73909687,146.1,146.06,15.73909687]
[1746649442300,15.73909687,146.09,146.05,21.95399687]
[1746649443307,23.95455478,146.11,146.08,15.73909687]
[1746649443826,6.84415851,146.11,146.08,15.73909687]
[1746649446119,6.84415851,146.11,146.09,15.73909687]
[1746649446503,6.84415851,146.11,146.06,6.8464599]
[1746649446722,6.84415851,146.11,146.09,15.73909687]
[1746649448624,6.84415851,146.11,146.05,13.06165992]
[1746649448828,22.58325538,146.11,146.07,15.73909687]
[1746649449927,6.84415851,146.11,146.08,15.73909687]
[1746649456630,6.84415851,146.11,146.09,15.73909687]
[1746649458844,6.84415851,146.11,146.1,15.73909687]
[1746649459617,6.84415851,146.11,146.06,6.84624709]
[1746649459815,6.84415851,146.11,146.1,15.73909687]
[1746649460134,6.84415851,146.11,146.06,6.84624709]
[1746649460339,6.84415851,146.11,146.09,15.73909687]
[1746649464446,6.84415851,146.11,146.06,82.5]
[1746649464739,6.84415851,146.11,146.08,15.73909687]
[1746649466149,6.84415851,146.11,146.09,15.73909687]
[1746649470444,23.95455478,146.11,146.08,15.73909687]
[1746649470625,23.95455478,146.11,146.07,15.73909687]
[1746649471740,23.95455478,146.11,146.05,88.7149]
[1746649471942,39.69365165,146.11,146.07,15.73909687]
[1746649481162,39.69365165,146.11,146.05,6.2149]
[1746649481348,15.73909687,146.1,146.06,15.73909687]
[1746649481661,23.9578342,146.09,146.06,15.73909687]
[1746649483258,23.9578342,146.09,146.07,15.73909687]
[1746649483858,17.11273872,146.09,146.07,15.73909687]
[1746649484047,17.11273872,146.09,146.06,15.73909687]
[1746649485453,33.35273872,146.09,146.06,15.73909687]
[1746649487759,40.1978342,146.09,146.06,10.08808872]
[1746649488359,40.1978342,146.09,146.02,148.85235488]
[1746649488660,40.1978342,146.09,146.06,10.08808872]
[1746649491172,40.1978342,146.09,146.02,66.35235488]
[1746649491342,40.1978342,146.09,146.06,10.08808872]
[1746649495875,40.1978342,146.09,146.07,10.08808872]
[1746649498780,40.1978342,146.09,146.06,10.08808872]
[1746649501077,40.1978342,146.09,146.02,26.0]
[1746649501258,10.08808872,146.07,146.02,10.08808872]
[1746649501460,10.08808872,146.07,146.03,10.08808872]
[1746649501661,40.1978342,146.09,146.06,10.08808872]
[1746649501857,23.08509548,146.09,146.08,10.08808872]
[1746649502478,6.84509548,146.09,146.08,10.08808872]
[1746649502861,17.11049622,146.11,146.08,10.08808872]
[1746649502862,6.84415851,146.11,146.08,50.4404436]
[1746649503069,23.08336272,146.13,146.1,10.08808872]
[1746649503270,23.08336272,146.13,146.12,10.08808872]
[1746649503470,6.84336272,146.13,146.12,10.08808872]
[1746649503869,6.84228532,146.15,146.12,15.74531319]
[1746649504055,6.84228532,146.15,146.14,15.74531319]
[1746649504974,23.94799862,146.15,146.1,84.0414]
[1746649505154,39.69331181,146.15,146.11,15.74531319]
[1746649506280,23.94799862,146.15,146.12,15.74531319]
[1746649510978,23.94799862,146.15,146.13,15.74531319]
[1746649511182,23.94799862,146.15,146.14,15.74531319]
[1746649512389,17.1057133,146.15,146.14,15.74531319]
[1746649513390,17.1057133,146.15,146.1,6.5497]
[1746649513687,17.1057133,146.15,146.14,15.74531319]
[1746649514490,17.1057133,146.15,146.13,15.74531319]
[1746649517401,17.1057133,146.15,146.1,89.0497]
[1746649517592,17.1057133,146.15,146.13,15.74531319]
[1746649519700,17.1057133,146.15,146.14,15.74531319]
[1746649520596,17.1057133,146.15,146.1,89.0497]
[1746649520898,17.1057133,146.15,146.13,15.74531319]
[1746649523704,17.1057133,146.15,146.1,89.0497]
[1746649523884,17.1057133,146.15,146.13,15.74531319]
[1746649524740,17.1057133,146.15,146.1,89.0497]
[1746649524884,32.85102649,146.15,146.11,15.74531319]
[1746649527906,23.94799862,146.15,146.12,15.74531319]
[1746649528117,23.94799862,146.15,146.13,15.74531319]
[1746649528613,6.84228532,146.15,146.14,15.74531319]
[1746649529391,6.84195987,146.16,146.14,15.74531319]
[1746649529591,16.24,146.17,146.14,15.74531319]
[1746649529592,6.84041316,146.19,146.15,22.26271319]
[1746649529797,6.84041316,146.19,146.18,15.74531319]
[1746649530386,6.84041316,146.19,146.17,15.74531319]
[1746649534313,6.84041316,146.19,146.15,89.0174]
[1746649534524,6.84041316,146.19,146.17,15.74531319]
[1746649536806,6.84041316,146.19,146.18,15.74531319]
[1746649538300,6.84041316,146.19,146.15,89.0174]
[1746649538496,6.84041316,146.19,146.18,15.74531319]
[1746649538805,6.84011375,146.2,146.18,98.24531319]
[1746649539117,6.84011375,146.2,146.19,15.74531319]
[1746649539907,39.68022465,146.23,146.19,15.74531319]
[1746649540820,23.93491146,146.23,146.19,15.74531319]
[1746649541116,39.68022465,146.23,146.19,15.74531319]
[1746649541515,15.74531319,146.22,146.18,82.5]
[1746649541723,15.74531319,146.2,146.18,82.5]
[1746649541917,15.74531319,146.2,146.16,98.24531319]
[1746649543020,6.84041316,146.19,146.16,98.24531319]
[1746649543527,39.68675925,146.19,146.15,104.76271319]
[1746649544317,23.94144606,146.19,146.16,15.74531319]
[1746649544524,23.94144606,146.19,146.15,89.0174]
[1746649544724,23.94144606,146.19,146.16,15.74531319]
[1746649553028,17.1010329,146.19,146.16,15.74531319]
[1746649553731,17.1010329,146.19,146.17,15.74531319]
[1746649555729,23.94144606,146.19,146.16,15.74531319]
[1746649555906,23.94144606,146.19,146.15,89.0174]
[1746649556111,23.94144606,146.19,146.16,15.74531319]
[1746649560741,39.68675925,146.19,146.15,98.24531319]
[1746649560932,15.74531319,146.17,146.11,6.2184]
[1746649561235,15.74531319,146.15,146.1,15.74531319]
[1746649561532,15.74531319,146.12,146.08,15.74531319]
[1746649561739,10.08469428,146.12,146.08,92.58469428]
[1746649562252,10.08469428,146.12,146.08,10.08469428]
[1746649562838,6.84415851,146.11,146.08,10.08469428]
[1746649563750,6.84415851,146.11,146.08,15.75862461]
[1746649566435,6.84415851,146.11,146.07,6.116]
[1746649566838,6.84415851,146.11,146.08,15.75862461]
[1746649567039,6.84415851,146.11,146.09,15.75862461]
[1746649567229,6.8438685,146.12,146.09,15.75862461]
[1746649567427,6.84275352,146.14,146.11,15.75862461]
[1746649567825,15.75862461,146.13,146.09,98.25862461]
[1746649568117,15.75862461,146.13,146.09,82.5]
[1746649568336,15.75862461,146.13,146.09,98.25862461]
[1746649570744,6.84369011,146.12,146.09,98.25862461]
[1746649571653,6.84369011,146.12,146.09,15.75862461]
[1746649571939,22.60231472,146.12,146.08,15.75862461]
[1746649572145,22.60231472,146.12,146.08,98.25862461]
[1746649576552,6.84369011,146.12,146.09,15.75862461]
[1746649579851,6.84228532,146.15,146.11,15.75862461]
[1746649580039,6.84228532,146.15,146.12,15.75862461]
[1746649587036,22.60090993,146.15,146.11,15.75862461]
[1746649589737,22.60090993,146.15,146.11,98.25862461]
[1746649592284,6.84228532,146.15,146.12,15.75862461]
[1746649594773,38.80061278,146.16,146.12,15.75862461]
[1746649594957,23.04198817,146.16,146.13,15.75862461]
[1746649596667,38.80061278,146.16,146.12,15.75862461]
[1746649598678,38.80061278,146.16,146.12,98.25862461]
[1746649600780,23.04198817,146.16,146.12,98.25862461]
[1746649600963,38.80061278,146.16,146.12,98.25862461]
[1746649605056,22.60061278,146.16,146.12,98.25862461]
[1746649605785,10.0787758,146.16,146.12,92.5787758]
[1746649607084,16.92012491,146.17,146.12,92.5787758]
[1746649607677,6.84134911,146.17,146.13,10.0787758]
[1746649607872,6.84134911,146.17,146.15,10.0787758]
[1746649608480,23.0410954,146.18,146.16,10.0787758]
[1746649608669,16.2,146.18,146.17,10.0787758]
[1746649608877,16.2,146.18,146.17,92.5787758]
[1746649609071,6.84011596,146.2,146.17,92.5787758]
[1746649609272,6.84011596,146.2,146.19,10.0787758]
[1746649609796,6.83947746,146.21,146.19,15.73339802]
[1746649611296,16.2,146.22,146.2,15.73339802]
[1746649611297,23.03918037,146.22,146.2,15.73339802]
[1746649611477,23.03918037,146.22,146.21,15.73339802]
[1746649611796,16.2,146.26,146.21,98.23339802]
[1746649612090,16.2,146.26,146.23,15.73339802]
[1746649612295,31.93339802,146.26,146.22,15.73339802]
[1746649614179,6.83760683,146.25,146.22,15.73339802]
[1746649616683,6.83760683,146.25,146.22,98.23339802]
[1746649616881,6.83760683,146.25,146.22,82.5]
[1746649617080,6.83760683,146.25,146.24,15.73339802]
[1746649617390,6.83760683,146.25,146.24,82.5]
[1746649618195,6.83760683,146.25,146.24,98.23339802]
[1746649618371,26.0,146.29,146.24,98.23339802]
[1746649618703,6.83573723,146.29,146.26,15.73339802]
[1746649619272,6.83573723,146.29,146.24,82.5]
[1746649619273,22.56913525,146.29,146.25,15.73339802]
[1746649619482,23.92508031,146.29,146.25,15.73339802]
[1746649619688,39.65847833,146.29,146.25,15.73339802]
[1746649620802,15.73339802,146.26,146.24,82.5]
[1746649620995,6.83807439,146.24,146.2,98.23339802]
[1746649621300,22.57147241,146.24,146.2,98.23339802]
[1746649621998,23.93326038,146.24,146.21,15.73339802]
[1746649625599,23.93326038,146.24,146.21,98.23339802]
[1746649626011,15.73339802,146.22,146.18,82.5]
[1746649626184,15.73339802,146.2,146.18,82.5]
[1746649626800,15.73339802,146.21,146.18,82.5]
[1746649627909,6.83994528,146.2,146.18,82.5]
[1746649629611,15.73339802,146.22,146.18,82.5]
[1746649630109,15.73339802,146.22,146.18,98.23339802]
[1746649631110,6.83947746,146.21,146.18,98.23339802]
[1746649631611,6.83947746,146.21,146.2,15.73339802]
[1746649634022,15.73339802,146.21,146.18,82.5]
[1746649634609,15.73339802,146.22,146.18,98.23339802]
[1746649634915,15.73339802,146.21,146.18,82.5]
[1746649635219,39.66829509,146.23,146.19,15.73339802]
[1746649635513,39.66829509,146.23,146.19,98.23339802]
[1746649637497,6.83947746,146.21,146.19,82.5]
[1746649638317,15.73339802,146.2,146.15,82.5]
[1746649638506,15.73339802,146.18,146.15,82.5]
[1746649639318,15.73339802,146.19,146.15,98.23339802]
[1746649639839,6.8408811,146.18,146.15,98.23339802]
[1746649640326,39.67648188,146.18,146.15,82.5]
[1746649640618,15.73339802,146.17,146.15,82.5]
[1746649640807,15.73339802,146.17,146.13,98.23339802]
[1746649641730,22.5752152,146.16,146.13,82.5]
[1746649642118,39.67975816,146.16,146.13,82.5]
[1746649646737,39.67975816,146.16,146.12,98.23339802]
[1746649653350,39.67975816,146.16,146.12,82.5]
[1746649653549,15.73339802,146.14,146.1,98.23339802]
[1746649653859,15.73339802,146.13,146.1,82.5]
[1746649654017,15.73339802,146.12,146.09,82.5]
[1746649654218,6.84415851,146.11,146.09,82.5]
[1746649655930,6.84415851,146.11,146.08,108.5]
[1746649656129,6.84415851,146.11,146.08,124.23339802]
[1746649656330,6.84415851,146.11,146.08,98.23339802]
[1746649656530,15.73339802,146.09,146.07,82.5]
[1746649656730,15.73339802,146.09,146.04,82.5]
[1746649657046,23.95455478,146.11,146.04,82.5]
[1746649657047,15.73339802,146.08,146.04,82.5]
[1746649657257,15.73339802,146.07,146.04,82.5]
[1746649657714,15.73339802,146.08,146.04,82.5]
[1746649658224,15.73339802,146.06,146.02,98.23339802]
[1746649658426,6.84697021,146.05,146.02,98.23339802]
[1746649660043,15.73339802,146.04,146.02,82.5]
[1746649660867,22.58036823,146.05,146.02,82.5]
[1746649661356,6.84697021,146.05,146.02,82.5]
[1746649661653,6.84697021,146.05,146.01,98.23339802]
[1746649664561,6.84697021,146.05,146.02,15.73339802]
[1746649665346,6.84697021,146.05,146.01,98.23339802]
[1746649665549,22.58036823,146.05,146.01,98.23339802]
[1746649666872,15.73339802,146.06,146.01,98.23339802]
[1746649669160,6.84697021,146.05,146.01,98.23339802]
[1746649669362,31.91339802,146.07,146.02,15.73339802]
[1746649669561,15.73339802,146.06,146.02,15.73339802]
[1746649670758,6.84697021,146.05,146.02,98.23339802]
[1746649672772,15.73339802,146.05,146.02,82.5]
[1746649673781,6.84733516,146.05,146.02,98.23339802]
[1746649675364,15.73339802,146.05,146.02,82.5]
[1746649676084,23.96275502,146.06,146.02,82.5]
[1746649676085,15.73339802,146.04,146.02,82.5]
[1746649676268,15.73339802,146.03,146.02,82.5]
[1746649676472,15.73339802,146.03,145.99,98.23339802]
[1746649677687,6.84837693,146.02,145.99,98.23339802]
[1746649677888,6.84837693,146.02,145.99,82.5]
[1746649678079,6.84837693,146.02,145.99,98.23339802]
[1746649679294,15.73339802,146.04,145.99,98.23339802]
[1746649679481,15.73339802,146.01,145.99,82.5]
[1746649679991,15.73339802,146.02,145.99,82.5]
[1746649680491,15.73339802,146.01,145.98,82.5]
[1746649680875,15.73339802,146.02,145.98,98.23339802]
[1746649681494,6.84884596,146.01,145.98,98.23339802]
[1746649682890,22.58224398,146.01,145.98,82.5]
[1746649686690,6.84884596,146.01,145.98,82.5]
[1746649686861,22.58224398,146.01,145.98,82.5]
[1746649691072,6.84884596,146.01,145.98,98.23339802]
[1746649691273,6.84884596,146.01,145.99,15.73339802]
[1746649691700,6.84884596,146.01,145.99,98.23339802]
[1746649693307,6.84884596,146.01,145.99,82.5]
[1746649701696,6.84884596,146.01,145.99,98.23339802]
[1746649702215,6.84884596,146.01,145.99,82.5]
[1746649705718,23.04858848,146.02,146.0,15.73339802]
[1746649706730,23.04858848,146.02,146.0,98.23339802]
[1746649707728,6.8481728,146.03,146.01,15.73339802]
[1746649707926,6.84697021,146.05,146.02,15.73339802]
[1746649708106,6.84697021,146.05,146.03,15.73339802]
[1746649709438,16.18,146.06,146.04,15.73339802]
[1746649709439,23.02662909,146.06,146.04,15.73339802]
[1746649712036,23.02662909,146.06,146.03,15.73339802]
[1746649712642,23.02662909,146.06,146.03,98.23339802]
[1746649714937,16.18,146.06,146.05,15.73339802]
[1746649715123,272.88,146.1,146.05,98.23339802]
[1746649715330,272.88,146.1,146.07,15.73339802]
[1746649715838,6.84524807,146.09,146.07,15.73339802]
[1746649716445,23.02464361,146.1,146.08,15.73339802]
[1746649716736,23.02464361,146.1,146.09,15.73339802]
[1746649717330,23.02464361,146.1,146.08,98.23339802]
[1746649717533,23.02464361,146.1,146.08,82.5]
[1746649720468,15.73339802,146.09,146.08,82.5]
[1746649720648,38.75804163,146.1,146.08,82.5]
[1746649721664,23.02464361,146.1,146.06,98.23339802]
[1746649721868,23.02464361,146.1,146.07,15.73339802]
[1746649723765,23.02464361,146.1,146.08,15.73339802]
[1746649724266,23.02464361,146.1,146.06,82.5]
[1746649724563,23.02464361,146.1,146.07,15.73339802]
[1746649727666,23.02464361,146.1,146.07,98.23339802]
[1746649728557,23.02464361,146.1,146.08,15.73339802]
[1746649728754,16.18,146.1,146.08,15.73339802]
[1746649729062,16.18,146.1,146.09,15.73339802]
[1746649729748,23.02462696,146.1,146.08,15.73339802]
[1746649730467,16.18,146.1,146.08,15.73339802]
[1746649731072,23.02467717,146.1,146.08,15.73339802]
[1746649732849,23.02467717,146.1,146.09,15.73339802]
[1746649733664,16.18,146.1,146.09,98.23339802]
[1746649734071,6.84412437,146.12,146.09,98.23339802]
[1746649734371,6.84412437,146.12,146.1,15.73339802]
[1746649734757,6.84322178,146.13,146.1,15.73339802]
[1746649735073,6.84322178,146.13,146.1,98.23339802]
[1746649738886,22.5766198,146.13,146.1,82.5]
[1746649740280,6.84322178,146.13,146.1,98.23339802]
[1746649742294,39.68467427,146.13,146.1,82.5]
[1746649742792,15.73339802,146.11,146.1,82.5]
[1746649743487,15.73339802,146.11,146.07,82.5]
[1746649743691,15.73339802,146.1,146.07,82.5]
[1746649744893,6.84509548,146.09,146.07,82.5]
[1746649747287,15.73339802,146.11,146.07,82.5]
[1746649748688,6.84462696,146.1,146.07,82.5]
[1746649748988,6.84462696,146.1,146.07,98.23339802]
[1746649749293,6.84462696,146.1,146.07,82.5]
[1746649749792,6.84462696,146.1,146.07,98.23339802]
[1746649750019,6.84462696,146.1,146.08,15.73339802]
[1746649750202,6.84462696,146.1,146.09,15.73339802]
[1746649750403,6.84322178,146.13,146.09,15.73339802]
[1746649750708,6.84322178,146.13,146.11,15.73339802]
[1746649750885,6.84322178,146.13,146.11,98.23339802]
[1746649751499,6.84322178,146.13,146.12,15.73339802]
[1746649751705,6.84322178,146.13,146.11,98.23339802]
[1746649753609,6.84322178,146.13,146.12,15.73339802]
[1746649754290,6.84322178,146.13,146.11,98.23339802]
[1746649756910,6.84322178,146.13,146.11,82.5]
[1746649758617,6.84322178,146.13,146.11,98.23339802]
[1746649759317,6.84322178,146.13,146.11,82.5]
[1746649761818,15.73339802,146.12,146.11,82.5]
[1746649762712,6.84369011,146.12,146.11,82.5]
[1746649763615,6.84369011,146.12,146.09,15.73339802]
[1746649764509,39.68631342,146.12,146.08,82.5]
[1746649764729,15.73339802,146.11,146.08,82.5]
[1746649764904,6.84462696,146.1,146.08,98.23339802]
[1746649765428,6.84462696,146.1,146.08,82.5]
[1746649765636,6.84462696,146.1,146.08,98.23339802]
[1746649767739,6.84415851,146.11,146.08,98.23339802]
[1746649768846,6.84415851,146.11,146.09,15.73339802]
[1746649769550,6.84415851,146.11,146.1,15.73339802]
[1746649769730,6.84322178,146.13,146.1,98.23339802]
[1746649770047,6.84322178,146.13,146.12,15.73339802]
[1746649770249,6.84322178,146.13,146.12,98.23339802]
[1746649771243,6.84322178,146.13,146.12,82.5]
[1746649774056,23.022972,146.14,146.12,98.23339802]
[1746649774218,6.842972,146.14,146.13,15.73339802]
[1746649774615,16.16,146.16,146.13,98.23339802]
[1746649774917,23.00204466,146.16,146.15,15.73339802]
[1746649776041,23.00204466,146.16,146.15,98.23339802]
[1746649776229,23.00204466,146.16,146.15,82.5]
[1746649776638,23.00204466,146.16,146.15,98.23339802]
[1746649777552,16.16,146.16,146.15,98.23339802]
[1746649777922,15.66,146.16,146.15,98.23339802]
[1746649778128,6.84156296,146.17,146.15,98.23339802]
[1746649779453,23.94163218,146.19,146.15,98.23339802]
[1746649779974,23.94163218,146.19,146.16,15.73339802]
[1746649784336,23.94163218,146.19,146.15,98.23339802]
[1746649785647,39.6750302,146.19,146.15,98.23339802]
[1746649785860,23.94163218,146.19,146.16,15.73339802]
[1746649787663,23.94163218,146.19,146.16,98.23339802]
[1746649789262,39.6750302,146.19,146.16,82.5]
[1746649792364,23.94163218,146.19,146.16,98.23339802]
[1746649794167,39.6750302,146.19,146.16,82.5]